fUSD/lending_fUSD_20260605
["ID","MTS","AMOUNT","RATE_DAILY","PERIOD"]
[424162471,1780620601000,-455.0,0.00013459,2]
[424162469,1780620601000,-453.0,0.00013459,2]
[424162468,1780620601000,-163.6,0.00013458,2]
[424162467,1780620601000,-444.0,0.00013443,2]
[424162466,1780620601000,-457.0,0.00013443,2]
[424162465,1780620601000,-451.0,0.00013443,2]
[424162464,1780620601000,-444.0,0.00013443,2]
[424162486,1780620601000,-458.0,0.00013527,2]
[424162473,1780620601000,-444.0,0.00013492,2]
[424162485,1780620601000,-443.0,0.00013527,2]
[424162505,1780620601000,-447.0,0.00013528,2]
[424162487,1780620601000,-457.0,0.00013527,2]
[424162488,1780620601000,-443.0,0.00013527,2]
[424162509,1780620601000,-456.0,0.00013528,2]
[424162508,1780620601000,-447.0,0.00013528,2]
[424162507,1780620601000,-441.0,0.00013528,2]
[424162506,1780620601000,-453.0,0.00013528,2]
[424162511,1780620601000,-451.0,0.00013528,2]
[424162504,1780620601000,-446.0,0.00013528,2]
[424162502,1780620601000,-457.0,0.00013528,2]
[424162503,1780620601000,-443.0,0.00013528,2]
[424162501,1780620601000,-445.0,0.00013528,2]
[424162500,1780620601000,-452.0,0.00013528,2]
[424162510,1780620601000,-458.0,0.00013528,2]
[424162497,1780620601000,-450.0,0.00013528,2]
[424162489,1780620601000,-442.0,0.00013527,2]
[424162499,1780620601000,-456.0,0.00013528,2]
[424162490,1780620601000,-455.0,0.00013527,2]
[424162493,1780620601000,-452.0,0.00013527,2]
[424162491,1780620601000,-456.0,0.00013527,2]
[424162494,1780620601000,-455.0,0.00013527,2]
[424162496,1780620601000,-441.0,0.00013528,2]
[424162498,1780620601000,-449.0,0.00013528,2]
[424162495,1780620601000,-455.0,0.00013528,2]
[424162492,1780620601000,-449.0,0.00013527,2]
[424162512,1780620602000,-447.0,0.00013528,2]
[424162513,1780620602000,-457.0,0.00013528,2]
[424162514,1780620602000,-443.0,0.00013528,2]
[424162518,1780620602000,-445.0,0.00013528,2]
[424162516,1780620602000,-452.0,0.00013528,2]
[424162515,1780620602000,-448.0,0.00013528,2]
[424162521,1780620602000,-452.0,0.00013529,2]
[424162519,1780620602000,-442.0,0.00013528,2]
[424162522,1780620602000,-442.0,0.00013529,2]
[424162520,1780620602000,-447.0,0.00013528,2]
[424162524,1780620602000,-454.0,0.00013534,2]
[424162525,1780620602000,-4106.76693321,0.00013534,2]
[424162523,1780620602000,-452.0,0.00013534,2]
[424162517,1780620602000,-459.0,0.00013528,2]
[424162531,1780620603000,-41476.78693321,0.00013534,2]
[424162526,1780620603000,-1200.0,0.00013433,2]
[424162528,1780620603000,-215.0,0.00013528,2]
[424162530,1780620603000,-999.99,0.00013534,2]
[424162527,1780620603000,-215.0,0.00013443,2]
[424162529,1780620603000,-5893.22306679,0.00013534,2]
[424162532,1780620603000,-12445.93306679,0.00013534,2]
[424162535,1780620603000,-447.0,0.0001354,2]
[424162534,1780620603000,-215.0,0.00013534,2]
[424162536,1780620603000,-447.0,0.00013554,2]
[424162537,1780620603000,-446.0,0.00013554,2]
[424162538,1780620603000,-458.0,0.00013586,2]
[424162539,1780620603000,-447.0,0.00013586,2]
[424162540,1780620603000,-449.0,0.00013586,2]
[424162541,1780620603000,-444.0,0.00013586,2]
[424162542,1780620603000,-33250.5141,0.00013599,2]
[424162533,1780620603000,-353.63,0.00013534,2]
[424162543,1780620604000,-596.92283321,0.00013599,2]
[424162544,1780620605000,-9999.99,0.00013599,2]
[424162547,1780620605000,-447.0,0.00013681,2]
[424162545,1780620605000,-1403.07716679,0.00013599,2]
[424162546,1780620605000,-250.0,0.00013607,2]
[424162548,1780620605000,-166.66,0.00013699,2]
[424162549,1780620605000,-200.0,0.00013699,2]
[424162550,1780620605000,-166.66,0.00013836,2]
[424162552,1780620605000,-451.0,0.00013889,2]
[424162556,1780620605000,-300.0,0.00014045,2]
[424162555,1780620605000,-300.0,0.00014045,2]
[424162553,1780620605000,-166.66,0.00013973,2]
[424162554,1780620605000,-250.0,0.00014,2]
[424162558,1780620605000,-300.0,0.00014045,2]
[424162551,1780620605000,-457.0,0.00013889,2]
[424162557,1780620605000,-300.0,0.00014045,2]
[424162571,1780620606000,-500.0,0.00014268,2]
[424162572,1780620606000,-500.0,0.00014268,2]
[424162573,1780620606000,-500.0,0.00014268,2]
[424162575,1780620606000,-500.0,0.00014268,2]
[424162576,1780620606000,-500.0,0.00014268,2]
[424162580,1780620606000,-500.0,0.00014268,2]
[424162578,1780620606000,-500.0,0.00014268,2]
[424162579,1780620606000,-500.0,0.00014268,2]
[424162574,1780620606000,-500.0,0.00014268,2]
[424162569,1780620606000,-2000.0,0.00014242,2]
[424162577,1780620606000,-571.74287233,0.00014268,2]
[424162570,1780620606000,-166.66,0.00014247,2]
[424162567,1780620606000,-500.0,0.00014168,2]
[424162566,1780620606000,-500.0,0.00014168,2]
[424162565,1780620606000,-500.0,0.00014168,2]
[424162564,1780620606000,-500.0,0.00014168,2]
[424162562,1780620606000,-1000.0,0.00014168,2]
[424162563,1780620606000,-2500.0,0.00014168,2]
[424162561,1780620606000,-2590.66553902,0.00014147,2]
[424162560,1780620606000,-166.66,0.0001411,2]
[424162559,1780620606000,-250.0,0.00014045,2]
[424162568,1780620606000,-4696.64739667,0.00014168,2]
[424162581,1780620606000,-500.0,0.00014268,2]
[424162591,1780620606000,-500.0,0.00014268,2]
[424162584,1780620606000,-500.0,0.00014268,2]
[424162582,1780620606000,-500.0,0.00014268,2]
[424162606,1780620606000,-500.0,0.00014268,2]
[424162605,1780620606000,-199.31501451,0.00014268,2]
[424162604,1780620606000,-500.0,0.00014268,2]
[424162602,1780620606000,-500.0,0.00014268,2]
[424162601,1780620606000,-500.0,0.00014268,2]
[424162600,1780620606000,-500.0,0.00014268,2]
[424162598,1780620606000,-500.0,0.00014268,2]
[424162599,1780620606000,-500.0,0.00014268,2]
[424162597,1780620606000,-500.0,0.00014268,2]
[424162596,1780620606000,-500.0,0.00014268,2]
[424162603,1780620606000,-500.0,0.00014268,2]
[424162594,1780620606000,-500.0,0.00014268,2]
[424162593,1780620606000,-500.0,0.00014268,2]
[424162595,1780620606000,-500.0,0.00014268,2]
[424162589,1780620606000,-500.0,0.00014268,2]
[424162588,1780620606000,-500.0,0.00014268,2]
[424162590,1780620606000,-500.0,0.00014268,2]
[424162586,1780620606000,-500.0,0.00014268,2]
[424162583,1780620606000,-500.0,0.00014268,2]
[424162587,1780620606000,-500.0,0.00014268,2]
[424162585,1780620606000,-500.0,0.00014268,2]
[424162592,1780620606000,-500.0,0.00014268,2]
[424162607,1780620607000,-500.0,0.00014268,2]
[424162610,1780620607000,-200.26201068,0.00014268,2]
[424162609,1780620607000,-500.0,0.00014268,2]
[424162608,1780620607000,-500.0,0.00014268,2]
[424162611,1780620608000,-263.91170216,0.00013101,2]
[424162612,1780620608000,-841.3188791,0.00013101,2]
[424162614,1780620608000,-299.73798932,0.00014268,2]
[424162613,1780620608000,-4328.48051187,0.00013101,2]
[424162615,1780620608000,-500.0,0.00014268,2]
[424162616,1780620608000,-500.0,0.00014268,2]
[424162617,1780620608000,-500.0,0.00014268,2]
[424162619,1780620608000,-500.0,0.00014268,2]
[424162618,1780620608000,-500.0,0.00014268,2]
[424162620,1780620608000,-500.0,0.00014268,2]
[424162621,1780620608000,-500.0,0.00014268,2]
[424162622,1780620608000,-500.0,0.00014268,2]
[424162624,1780620608000,-500.0,0.00014268,2]
[424162627,1780620608000,-500.0,0.00014268,2]
[424162623,1780620608000,-500.0,0.00014268,2]
[424162626,1780620608000,-500.0,0.00014268,2]
[424162638,1780620608000,-215.0,0.00014268,2]
[424162636,1780620608000,-500.0,0.00014268,2]
[424162635,1780620608000,-500.0,0.00014268,2]
[424162633,1780620608000,-500.0,0.00014268,2]
[424162634,1780620608000,-500.0,0.00014268,2]
[424162637,1780620608000,-636.15,0.00014268,2]
[424162632,1780620608000,-500.0,0.00014268,2]
[424162629,1780620608000,-500.0,0.00014268,2]
[424162631,1780620608000,-500.0,0.00014268,2]
[424162630,1780620608000,-500.0,0.00014268,2]
[424162625,1780620608000,-500.0,0.00014268,2]
[424162628,1780620608000,-550.27066112,0.00014268,2]
[424162651,1780620609000,-600.0,0.00014784,2]
[424162657,1780620609000,-500.0,0.00014999,2]
[424162658,1780620609000,-500.0,0.00014999,2]
[424162656,1780620609000,-628.28,0.00014871,2]
[424162655,1780620609000,-457.0,0.00014856,2]
[424162653,1780620609000,-200.0,0.00014784,2]
[424162654,1780620609000,-306.35117406,0.00014784,2]
[424162652,1780620609000,-200.0,0.00014784,2]
[424162650,1780620609000,-600.0,0.00014784,2]
[424162644,1780620609000,-447.0,0.00014393,2]
[424162649,1780620609000,-600.0,0.00014784,2]
[424162646,1780620609000,-1680.0,0.00014776,2]
[424162643,1780620609000,-445.0,0.00014393,2]
[424162645,1780620609000,-3430.74809717,0.00014733,2]
[424162659,1780620609000,-500.0,0.00014999,2]
[424162642,1780620609000,-166.66,0.00014384,2]
[424162640,1780620609000,-457.0,0.00014308,2]
[424162641,1780620609000,-1250.57,0.00014379,2]
[424162639,1780620609000,-215.0,0.00014268,2]
[424162648,1780620609000,-600.0,0.00014784,2]
[424162660,1780620609000,-500.0,0.00014999,2]
[424162647,1780620609000,-600.0,0.00014776,2]
[424162663,1780620609000,-500.0,0.00014999,2]
[424162683,1780620609000,200.0,0.00014028,2]
[424162681,1780620609000,300.0,0.00013879,2]
[424162682,1780620609000,331.73812018,0.00013879,2]
[424162680,1780620609000,300.0,0.00013879,2]
[424162679,1780620609000,200.0,0.00013889,2]
[424162677,1780620609000,592.88734821,0.00013101,2]
[424162678,1780620609000,300.0,0.00013767,2]
[424162661,1780620609000,-500.0,0.00014999,2]
[424162673,1780620609000,-500.0,0.00014999,2]
[424162672,1780620609000,-500.0,0.00014999,2]
[424162676,1780620609000,-209.32754824,0.00015,2]
[424162675,1780620609000,-500.0,0.00014999,2]
[424162662,1780620609000,-503.11160256,0.00014999,2]
[424162674,1780620609000,-500.0,0.00014999,2]
[424162666,1780620609000,-500.0,0.00014999,2]
[424162664,1780620609000,-500.0,0.00014999,2]
[424162665,1780620609000,-500.0,0.00014999,2]
[424162667,1780620609000,-500.0,0.00014999,2]
[424162669,1780620609000,-500.0,0.00014999,2]
[424162670,1780620609000,-500.0,0.00014999,2]
[424162671,1780620609000,-500.0,0.00014999,2]
[424162668,1780620609000,-500.0,0.00014999,2]
[424162688,1780620610000,296.68129441,0.00013879,2]
[424162687,1780620610000,300.0,0.00013767,2]
[424162686,1780620610000,200.0,0.00014453,2]
[424162685,1780620610000,200.0,0.0001431,2]
[424162684,1780620610000,200.0,0.00014168,2]
[424162689,1780620611000,200.0,0.00014411,2]
[424162690,1780620611000,200.0,0.00013733,2]
[424162691,1780620611000,250.0,0.00014411,2]
[424162692,1780620611000,250.0,0.00013434,2]
[424162693,1780620612000,250.0,0.00013733,2]
[424162722,1780620632000,-500.0,0.00016437,2]
[424162721,1780620632000,-500.0,0.00016437,2]
[424162720,1780620632000,-2590.66553896,0.00016416,2]
[424162711,1780620632000,-306.34155805,0.00015837,2]
[424162718,1780620632000,-1500.0,0.00016289,2]
[424162716,1780620632000,-500.0,0.00016115,2]
[424162717,1780620632000,-2351.0,0.00016254,2]
[424162715,1780620632000,-500.0,0.00016115,2]
[424162713,1780620632000,-3430.74809717,0.00015979,2]
[424162719,1780620632000,-4696.64739659,0.00016375,2]
[424162714,1780620632000,-300.0,0.00016,2]
[424162712,1780620632000,-500.0,0.00015837,2]
[424162710,1780620632000,-2000.0,0.00015824,2]
[424162709,1780620632000,-450.0,0.00015585,2]
[424162704,1780620632000,-4696.64739659,0.00015272,2]
[424162703,1780620632000,-300.0,0.00015068,2]
[424162707,1780620632000,-151.0,0.00015585,2]
[424162708,1780620632000,-453.0,0.00015585,2]
[424162702,1780620632000,-300.0,0.00015068,2]
[424162705,1780620632000,-183.0,0.00015404,2]
[424162706,1780620632000,-454.0,0.00015585,2]
[424162701,1780620632000,-262.0,0.00015068,2]
[424162700,1780620632000,-461.0,0.00015068,2]
[424162699,1780620632000,-151.0,0.00015068,2]
[424162723,1780620632000,-500.0,0.00016437,2]
[424162731,1780620632000,-7405.0869754,0.0001773,2]
[424162729,1780620632000,-2000.0,0.00017407,2]
[424162725,1780620632000,-168.16,0.00016712,2]
[424162751,1780620632000,-1734.62772924,0.00018481,2]
[424162749,1780620632000,-40009.6366877,0.00018418,2]
[424162750,1780620632000,-3430.74809717,0.00018471,2]
[424162724,1780620632000,-2147.2,0.00016438,2]
[424162746,1780620632000,-17562.0,0.00018384,2]
[424162745,1780620632000,-1279.79,0.000182,2]
[424162747,1780620632000,-4000.0,0.0001841,2]
[424162748,1780620632000,-2147.2,0.0001841,2]
[424162753,1780620632000,-152.61483732,0.00018482,2]
[424162744,1780620632000,-273.23,0.000182,2]
[424162743,1780620632000,-350.0,0.00018,2]
[424162742,1780620632000,-500.0,0.00017999,2]
[424162736,1780620632000,-215.0,0.00017772,2]
[424162752,1780620632000,-260.90912991,0.00018482,2]
[424162739,1780620632000,-150.0,0.00017886,2]
[424162741,1780620632000,-1672.7364795,0.00017933,2]
[424162733,1780620632000,-6047.38970563,0.00017772,2]
[424162738,1780620632000,-3292.0,0.00017879,2]
[424162735,1780620632000,-9006.0730715,0.00017772,2]
[424162734,1780620632000,-134874.62354813,0.00017772,2]
[424162732,1780620632000,-416.37332684,0.00017772,2]
[424162730,1780620632000,-4696.64739659,0.00017479,2]
[424162728,1780620632000,-1613.0535,0.00017385,2]
[424162727,1780620632000,-3430.74809717,0.00017225,2]
[424162726,1780620632000,-1555.5,0.00016837,2]
[424162737,1780620632000,-1128.29,0.00017875,2]
[424162754,1780620633000,-516.88579005,0.00018482,2]
[424162755,1780620633000,-162.92313376,0.000185,2]
[424162759,1780620633000,-234679.2081183,0.0001851,2]
[424162757,1780620633000,-500.0,0.00018509,2]
[424162761,1780620633000,-1305.0,0.0001851,2]
[424162760,1780620633000,-11463.98557392,0.0001851,2]
[424162756,1780620633000,-195.25588963,0.000185,2]
[424162758,1780620633000,-220.86658817,0.00018509,2]
[424162765,1780620638000,-11489.05786125,0.0001851,2]
[424162763,1780620638000,-151.0,0.00015068,2]
[424162762,1780620638000,-215.73365239,0.00013522,2]
[424162764,1780620638000,-500.0,0.00017674,2]
[424162766,1780620641000,-952477.32075893,0.0001851,2]
[424162776,1780620641000,-805.98345196,0.0001851,2]
[424162777,1780620641000,-667.96197469,0.0001851,2]
[424162779,1780620641000,-484.1453758,0.0001851,2]
[424162778,1780620641000,-2826.33,0.0001851,2]
[424162844,1780620643000,-125.68872735,0.0001851,2]
[424162843,1780620643000,-5348.70210546,0.0001851,2]
[424162845,1780620644000,-2405.23670996,0.0001851,2]
[424162846,1780620644000,-1031.84517121,0.0001851,2]
[424162850,1780620644000,-500.0,0.0001851,2]
[424162848,1780620644000,-674.26931332,0.0001851,2]
[424162847,1780620644000,-765.56040549,0.0001851,2]
[424162849,1780620644000,-256.20640019,0.0001851,2]
[424162866,1780620646000,-2650.26441822,0.0001851,2]
[424162865,1780620646000,-465.6014441,0.0001851,2]
[424162864,1780620646000,-2966.71144329,0.0001851,2]
[424162871,1780620733000,-150.0,0.00013031,2]
[424162870,1780620733000,-223.54745871,0.00012634,2]
[424162872,1780620734000,-9626.45254129,0.00013434,2]
[424162873,1780620735000,-10000.0,0.00013434,2]
[424162874,1780620736000,-10000.0,0.00013434,2]
[424162875,1780620737000,-3624.06155871,0.00013434,2]
[424162876,1780620737000,-500.0,0.00013897,2]
[424162877,1780620737000,-166.87543593,0.00013897,2]
[424162880,1780620737000,-193.0,0.00014334,2]
[424162878,1780620737000,-600.0,0.00014334,2]
[424162881,1780620737000,-250.0,0.00014509,2]
[424162882,1780620737000,-250.0,0.00014777,2]
[424162879,1780620737000,-150.0,0.00014334,2]
[424162883,1780620738000,160.0,0.00013434,2]
[424162884,1780620797000,-150.0,0.00012255,2]
[424162885,1780620821000,-379.0,0.00013422,2]
[424162886,1780620850000,-150.0,0.00011887,2]
[424162887,1780620851000,-121.0,0.00013422,2]
[424162888,1780620851000,-250.0,0.0001348,2]
[424162889,1780620851000,-458.0,0.00013585,2]
[424162891,1780620851000,-442.0,0.00013585,2]
[424162890,1780620851000,-450.0,0.00013585,2]
[424162893,1780620851000,-457.0,0.00013732,2]
[424162894,1780620851000,-250.0,0.00013776,2]
[424162895,1780620851000,-443.0,0.00013958,2]
[424162896,1780620851000,-452.0,0.00013958,2]
[424162897,1780620851000,-300.0,0.00014526,2]
[424162892,1780620851000,-450.0,0.00013732,2]
[424162898,1780620852000,-448.0,0.00014527,2]
[424162900,1780620852000,-447.0,0.00014527,2]
[424162901,1780620852000,-445.0,0.00014527,2]
[424162899,1780620852000,-215.73365239,0.00014527,2]
[424162903,1780620852000,-456.0,0.00014527,2]
[424162904,1780620852000,-456.0,0.00014527,2]
[424162905,1780620852000,172.26,0.00012675,2]
[424162902,1780620852000,-454.0,0.00014527,2]
[424162906,1780620853000,185.00634761,0.00014536,2]
[424162907,1780620871000,227.51,0.00028767,120]
[424162908,1780620876000,193.51645214,0.00012255,7]
[424162909,1780620877000,193.51645214,0.000125,7]
[424162910,1780620878000,193.51645214,0.00012867,7]
[424162912,1780620879000,193.51645214,0.00013725,7]
[424162911,1780620879000,193.51645214,0.00013235,7]
[424162913,1780620888000,1228.27,0.00029082,120]
[424162915,1780620903000,-30.72730478,0.00014536,2]
[424162916,1780620957000,-843.91766187,0.00014994,2]
[424162917,1780620974000,-152.0,0.00011639,2]
[424162918,1780621025000,-500.0,0.00011787,2]
[424162921,1780621078000,-317.14,0.00014434,2]
[424162922,1780621089000,3319.575703,0.00030137,120]
[424162925,1780621132000,200.0,0.00014285,7]
[424162924,1780621132000,-500.0,0.00013698,2]
[424162926,1780621133000,296.73,0.00014285,7]
[424162928,1780621186000,-1470.8864371,0.00013599,2]
[424162930,1780621249000,-310.28061962,0.00013083,2]
[424162932,1780621266000,-5007.95395651,0.00013529,2]
[424162931,1780621266000,-152.0,0.0001213,2]
[424162942,1780621613000,-3831.39325942,0.00013176,2]
[424162943,1780621630000,-152.0,0.0001311,2]
[424162944,1780621652000,-232.9,0.0001311,2]
[424162945,1780621652000,-175.26703918,0.0001311,2]
[424162946,1780621652000,-250.37775007,0.0001311,2]
[424162947,1780621652000,-205.423467,0.0001311,2]
[424162950,1780621652000,-162.0,0.0001311,2]
[424162949,1780621652000,-300.0,0.0001311,2]
[424162952,1780621652000,-398.99803226,0.0001311,2]
[424162948,1780621652000,-250.0,0.0001311,2]
[424162951,1780621652000,-156.40240843,0.0001311,2]
[424162953,1780621653000,-250.37775007,0.0001311,2]
[424162956,1780621653000,-63.73433899,0.0001311,2]
[424162955,1780621653000,-154.98,0.0001311,2]
[424162954,1780621653000,-154.98,0.0001311,2]
[424162957,1780621680000,-152.0,0.00013243,2]
[424162959,1780621734000,117.93835554,0.00012679,2]
[424162958,1780621734000,-419.37,0.00013262,2]
[424162960,1780621734000,82.06164446,0.00012679,2]
[424162961,1780621740000,2000.0,0.00030136,120]
[424162962,1780621786000,-1030.03,0.00013262,2]
[424163032,1780621839000,-383.11,0.00013318,2]
[424163036,1780621840000,-1200.0,0.00013341,2]
[424163033,1780621840000,-2247.54287663,0.00013327,2]
[424163037,1780621840000,-500.0,0.00013342,2]
[424163035,1780621840000,-300.0,0.00013341,2]
[424163038,1780621840000,-186.22499167,0.00013342,2]
[424163034,1780621840000,-150.0,0.00013341,2]
[424163046,1780621841000,-500.0,0.00013342,2]
[424163045,1780621841000,-500.0,0.00013342,2]
[424163047,1780621841000,-500.0,0.00013342,2]
[424163051,1780621841000,-500.0,0.00013342,2]
[424163049,1780621841000,-500.0,0.00013342,2]
[424163039,1780621841000,-220.07074985,0.00013342,2]
[424163043,1780621841000,-129.68936055,0.00013342,2]
[424163044,1780621841000,-370.31063945,0.00013342,2]
[424163042,1780621841000,-500.0,0.00013342,2]
[424163040,1780621841000,-500.0,0.00013342,2]
[424163041,1780621841000,-378.47487361,0.00013342,2]
[424163050,1780621841000,-500.0,0.00013342,2]
[424163063,1780621841000,-275.10456352,0.00013342,2]
[424163053,1780621841000,-165.0616539,0.00013342,2]
[424163048,1780621841000,-500.0,0.00013342,2]
[424163056,1780621841000,-608.35938017,0.00013342,2]
[424163054,1780621841000,-500.0,0.00013342,2]
[424163062,1780621841000,-500.0,0.00013342,2]
[424163059,1780621841000,-531.59128967,0.00013342,2]
[424163055,1780621841000,-360.5385875,0.00013342,2]
[424163058,1780621841000,-234.99843405,0.00013342,2]
[424163052,1780621841000,-500.0,0.00013342,2]
[424163061,1780621841000,-444.15638091,0.00013342,2]
[424163060,1780621841000,-35.15714234,0.00013342,2]
[424163057,1780621841000,-500.0,0.00013342,2]
[424163101,1780621843000,-1319.0344,0.0001426,2]
[424163097,1780621843000,-1083.75,0.00014095,2]
[424163103,1780621843000,-2457.9125026,0.00014371,2]
[424163107,1780621843000,-163.0,0.00014455,2]
[424163106,1780621843000,-255.0,0.00014448,2]
[424163108,1780621843000,-5542.75863248,0.00014466,2]
[424163100,1780621843000,-459.1269,0.0001426,2]
[424163098,1780621843000,-163.0,0.0001419,2]
[424163099,1780621843000,-166.66,0.00014254,2]
[424163105,1780621843000,-1083.75,0.00014447,2]
[424163111,1780621843000,-250.0,0.00014589,2]
[424163110,1780621843000,-169.0,0.00014588,2]
[424163120,1780621843000,-492.32281517,0.0001465,2]
[424163112,1780621843000,-300.0,0.00014589,2]
[424163109,1780621843000,-166.66,0.00014532,2]
[424163102,1780621843000,-163.0,0.00014322,2]
[424163113,1780621843000,-300.0,0.00014589,2]
[424163119,1780621843000,-859.42,0.00014638,2]
[424163117,1780621843000,-250.0,0.00014603,2]
[424163116,1780621843000,-300.0,0.00014589,2]
[424163115,1780621843000,-300.0,0.00014589,2]
[424163114,1780621843000,-300.0,0.00014589,2]
[424163104,1780621843000,-250.0,0.00014421,2]
[424163093,1780621843000,-163.0,0.00013925,2]
[424163092,1780621843000,-186.55,0.00013815,2]
[424163090,1780621843000,-299.99,0.00013699,2]
[424163070,1780621843000,-500.5236456,0.00013341,2]
[424163071,1780621843000,-182.026748,0.00013343,2]
[424163072,1780621843000,-1000.0,0.00013349,2]
[424163083,1780621843000,-500.0,0.00013616,2]
[424163081,1780621843000,-2548.5,0.0001359,2]
[424163082,1780621843000,-2000.0,0.00013599,2]
[424163078,1780621843000,-150.0,0.00013438,2]
[424163077,1780621843000,-7265.12,0.00013427,2]
[424163075,1780621843000,-804.43520824,0.00013427,2]
[424163074,1780621843000,-804.43520825,0.00013426,2]
[424163073,1780621843000,-163.0,0.00013394,2]
[424163079,1780621843000,-200.0,0.00013465,2]
[424163076,1780621843000,-804.43520824,0.00013427,2]
[424163080,1780621843000,-163.0,0.00013527,2]
[424163086,1780621843000,-500.0,0.00013698,2]
[424163087,1780621843000,-166.66,0.00013699,2]
[424163088,1780621843000,-200.0,0.00013699,2]
[424163091,1780621843000,-163.0,0.00013792,2]
[424163096,1780621843000,-163.0,0.00014057,2]
[424163118,1780621843000,-420.0,0.00014626,2]
[424163089,1780621843000,-150.99,0.00013699,2]
[424163085,1780621843000,-163.0,0.00013659,2]
[424163095,1780621843000,-5542.75863256,0.00013995,2]
[424163094,1780621843000,-166.66,0.00013977,2]
[424163122,1780621843000,-1680.0,0.00014675,2]
[424163084,1780621843000,-164.93,0.00013656,2]
[424163125,1780621843000,-5542.75863248,0.00014936,2]
[424163148,1780621843000,-500.0,0.00015196,2]
[424163151,1780621843000,-500.0,0.00015196,2]
[424163149,1780621843000,-500.0,0.00015196,2]
[424163167,1780621843000,-500.0,0.00015196,2]
[424163164,1780621843000,-500.0,0.00015196,2]
[424163181,1780621843000,-383.66432354,0.00015196,2]
[424163179,1780621843000,-500.0,0.00015196,2]
[424163177,1780621843000,-500.0,0.00015196,2]
[424163175,1780621843000,-500.0,0.00015196,2]
[424163169,1780621843000,-500.0,0.00015196,2]
[424163171,1780621843000,-500.0,0.00015196,2]
[424163160,1780621843000,-216.87343249,0.00015196,2]
[424163173,1780621843000,-500.0,0.00015196,2]
[424163184,1780621843000,-116.33567646,0.00015196,2]
[424163190,1780621843000,-500.0,0.00015196,2]
[424163188,1780621843000,-500.0,0.00015196,2]
[424163192,1780621843000,-538.25220633,0.00015196,2]
[424163186,1780621843000,-500.0,0.00015196,2]
[424163194,1780621843000,-500.0,0.00015196,2]
[424163199,1780621843000,-500.0,0.00015196,2]
[424163196,1780621843000,-500.0,0.00015196,2]
[424163201,1780621843000,-500.0,0.00015196,2]
[424163132,1780621843000,-874.99999999,0.00015097,2]
[424163147,1780621843000,-500.0,0.00015196,2]
[424163143,1780621843000,-500.0,0.00015196,2]
[424163162,1780621843000,-500.0,0.00015196,2]
[424163145,1780621843000,-48.26669191,0.00015196,2]
[424163123,1780621843000,-1083.75,0.00014799,2]
[424163121,1780621843000,-206.62261363,0.0001465,2]
[424163128,1780621843000,-2500.0,0.00015049,2]
[424163126,1780621843000,-1048.99843783,0.0001499,2]
[424163129,1780621843000,-166.66,0.00015088,2]
[424163146,1780621843000,-500.0,0.00015196,2]
[424163127,1780621843000,-151.0,0.00014994,2]
[424163131,1780621843000,-1057.10676253,0.00015097,2]
[424163130,1780621843000,-215.73365239,0.00015095,2]
[424163133,1780621843000,-254.67834107,0.00015097,2]
[424163138,1780621843000,-199.71082136,0.000151,2]